bitfinex/quotes_SOLUSD_20250607
["timestamp","ask_amount","ask_price","bid_price","bid_amount"]
[1749292467874,8.35058524,152.11,152.06,13.39503668]
[1749292469255,6.81868524,152.11,152.06,13.39503668]
[1749292469880,6.81868524,152.11,152.07,13.3944435]
[1749292470385,6.81868524,152.11,152.07,6.57575826]
[1749292470575,13.39296379,152.11,152.06,13.39491208]
[1749292471469,6.81868524,152.11,152.06,13.39491208]
[1749292472479,6.81868524,152.1,152.05,13.39531961]
[1749292478065,6.81868524,152.1,152.05,6.57663437]
[1749292478271,6.81868524,152.1,152.06,6.81868524]
[1749292481893,6.81868524,152.09,152.05,6.81868524]
[1749292483590,6.81868524,152.09,152.04,6.81868524]
[1749292483591,6.81868524,152.08,152.04,6.81868524]
[1749292485367,6.81868524,152.08,152.04,13.39586304]
[1749292485782,6.81868524,152.08,152.04,6.5771778]
[1749292485985,6.81868524,152.08,152.04,13.39586304]
[1749292488375,13.39420869,152.08,152.04,6.81868524]
[1749292488995,13.39419448,152.08,152.04,6.81868524]
[1749292489387,13.39419448,152.08,152.03,49.59614693]
[1749292490294,13.39419448,152.08,152.03,23.59614693]
[1749292490888,6.81868524,152.06,152.03,10.2]
[1749292491081,6.81868524,152.06,152.02,13.39660498]
[1749292491471,6.81868524,152.07,152.03,6.81868524]
[1749292491697,18.64964886,152.08,152.04,6.81868524]
[1749292491871,25.4683341,152.08,152.04,6.81868524]
[1749292493388,32.04399262,152.08,152.04,6.81868524]
[1749292493589,32.04399262,152.08,152.03,13.39631771]
[1749292493998,6.81868524,152.07,152.03,6.81868524]
[1749292495286,13.39513193,152.06,152.02,6.81868524]
[1749292495603,6.81868524,152.05,152.0,6.57864654]
[1749292495901,6.81868524,152.05,152.0,13.39756867]
[1749292496078,6.81868524,152.04,152.0,13.39756867]
[1749292496988,6.81868524,152.04,152.0,6.81868524]
[1749292497702,6.81868524,152.03,151.99,49.59800692]
[1749292498286,1.6197,152.05,151.99,10.2]
[1749292498287,6.81868524,152.02,151.99,10.2]
[1749292498497,6.81868524,152.02,151.99,16.7792418]
[1749292498700,6.81868524,152.02,151.99,6.5792418]
[1749292498905,6.81868524,152.03,151.99,13.39792704]
[1749292500788,6.81868524,152.03,151.99,6.5792418]
[1749292501308,6.81868524,152.02,151.99,6.5792418]
[1749292501705,6.81868524,152.02,151.98,26.0]
[1749292502289,6.81868524,152.02,151.98,32.57975732]
[1749292502490,6.81868524,152.01,151.98,32.57975732]
[1749292503610,25.22692434,152.04,151.93,10.2]
[1749292503611,6.81868524,151.99,151.93,10.2]
[1749292503810,6.81868524,151.99,151.94,6.81868524]
[1749292504014,6.81868524,151.99,151.95,6.81868524]
[1749292504715,6.81868524,151.99,151.96,6.58067912]
[1749292505089,6.70036157,152.03,151.97,6.81868524]
[1749292505292,6.96084681,152.03,151.98,6.81868524]
[1749292506229,6.81868524,152.02,151.98,6.81868524]
[1749292506586,6.81868524,152.02,151.97,6.81868524]
[1749292507011,6.81868524,152.03,151.99,6.81868524]
[1749292508913,6.81868524,152.03,151.99,13.39782666]
[1749292509806,6.81868524,152.03,151.99,6.57914142]
[1749292511122,13.39635869,152.03,151.96,16.45169217]
[1749292511420,13.39635869,152.03,151.98,6.81868524]
[1749292512008,6.81868524,152.03,151.98,6.81868524]
[1749292513318,16.77737265,152.04,151.99,6.81868524]
[1749292513524,23.59605789,152.04,151.99,6.81868524]
[1749292513724,17.01868524,152.04,151.99,6.81868524]
[1749292514016,10.2,152.04,152.0,6.81868524]
[1749292514322,6.81868524,152.04,152.0,6.81868524]
[1749292515409,6.81868524,152.04,151.99,13.39801875]
[1749292515624,13.39603222,152.04,151.99,13.39801875]
[1749292515796,13.39603222,152.04,151.99,6.81868524]
[1749292516203,6.81868524,152.03,151.99,6.81868524]
[1749292516620,6.81868524,152.02,151.97,32.81868524]
[1749292517000,6.81868524,152.02,151.97,6.81868524]
[1749292517341,13.39714343,152.02,151.97,6.81868524]
[1749292519423,6.81868524,152.01,151.97,6.81868524]
[1749292520118,6.81868524,152.01,151.96,6.81868524]
[1749292520526,13.3976326,152.0,151.95,26.0]
[1749292520705,13.3976326,152.0,151.96,6.81868524]
[1749292523218,17.25429096,152.0,151.96,10.6753436]
[1749292524112,17.25429096,152.0,151.95,43.25642987]
[1749292525832,17.25429096,152.0,151.95,10.6753436]
[1749292526030,10.6753436,151.99,151.95,10.6753436]
[1749292527354,10.6753436,152.0,151.96,10.6753436]
[1749292528137,17.25398223,152.01,151.96,17.2559981]
[1749292528731,17.25398223,152.01,151.97,10.6753436]
[1749292529033,26.0,152.06,151.96,6.5806545]
[1749292529034,45.42860364,152.07,152.0,10.6753436]
[1749292529234,1.6197,152.05,152.03,10.6753436]
[1749292529612,1.6197,152.05,152.02,10.6753436]
[1749292530151,8.19664014,152.05,152.02,10.6753436]
[1749292530821,8.19664014,152.05,152.01,10.6753436]
[1749292534653,18.87198374,152.05,152.01,10.6753436]
[1749292535316,18.87198374,152.05,152.0,17.25417753]
[1749292535842,10.6753436,152.04,152.0,17.25417753]
[1749292536138,10.6753436,152.03,151.98,10.6753436]
[1749292536439,10.6753436,152.02,151.98,10.6753436]
[1749292537316,17.25352489,152.02,151.97,17.25553944]
[1749292537819,17.25352489,152.02,151.97,10.6753436]
[1749292538337,6.57818129,152.02,151.97,10.6753436]
[1749292538527,10.6753436,152.03,151.99,10.6753436]
[1749292538937,10.6753436,152.02,151.98,10.6753436]
[1749292539445,17.25342606,152.02,151.98,10.6753436]
[1749292540157,10.6753436,152.01,151.96,36.6753436]
[1749292540448,10.6753436,152.0,151.96,36.6753436]
[1749292541240,10.6753436,152.0,151.96,43.25596588]
[1749292542234,6.57822091,152.02,151.96,43.25596588]
[1749292542434,10.6753436,152.01,151.97,10.6753436]
[1749292543127,10.6753436,152.01,151.98,6.57981313]
[1749292543743,10.6753436,152.02,151.98,17.25515673]
[1749292544431,10.6753436,152.02,151.98,6.57981313]
[1749292545159,10.6753436,152.01,151.97,6.58018714]
[1749292546059,10.6753436,152.01,151.97,17.25553074]
[1749292546437,10.6753436,152.02,151.97,17.25553074]
[1749292548074,20.41151043,152.05,152.01,10.6753436]
[1749292548247,20.41151043,152.05,151.97,6.58018714]
[1749292548248,1.6197,152.05,152.02,10.6753436]
[1749292548773,1.6197,152.05,152.01,10.6753436]
[1749292549134,1.6197,152.05,152.01,17.25368724]
[1749292549335,12.2950436,152.05,152.01,17.25368724]
[1749292549871,18.87185209,152.05,152.01,10.6753436]
[1749292550042,10.6753436,152.04,152.0,10.6753436]
[1749292550435,10.6753436,152.01,151.96,26.0]
[1749292550674,10.6753436,152.03,151.99,10.6753436]
[1749292551461,17.25299934,152.03,151.98,10.6753436]
[1749292552643,17.25299934,152.03,151.98,17.25504452]
[1749292555757,10.6753436,152.02,151.98,17.25504452]
[1749292555947,17.25362726,152.02,151.97,10.6753436]
[1749292556147,17.25362726,152.02,151.97,17.25556702]
[1749292556460,10.6753436,152.02,151.98,10.6753436]
[1749292559157,17.25344037,152.02,151.98,10.6753436]
[1749292559349,17.25344037,152.02,151.97,17.25556702]
[1749292561670,17.25350712,152.02,151.97,17.25556702]
[1749292562240,10.6753436,152.01,151.97,17.25556702]
[1749292562441,10.6753436,152.01,151.95,10.6753436]
[1749292562442,10.6753436,152.0,151.95,10.6753436]
[1749292562651,6.57816352,152.02,151.96,10.6753436]
[1749292562853,10.6753436,152.02,151.97,10.6753436]
[1749292563065,10.6753436,152.02,151.97,17.25517761]
[1749292563249,10.6753436,152.03,151.97,6.57983401]
[1749292563453,10.6753436,152.03,151.99,10.6753436]
[1749292563654,41.59696139,152.04,151.99,10.6753436]
[1749292563972,36.6753436,152.04,151.99,10.6753436]
[1749292564171,36.6753436,152.04,152.0,10.6753436]
[1749292564357,43.25259508,152.04,152.0,10.6753436]
[1749292564666,43.25259508,152.04,151.99,10.6753436]
[1749292566262,35.90301214,152.03,151.98,10.6753436]
[1749292566459,35.90301214,152.03,151.97,10.6753436]
[1749292566460,10.6753436,152.01,151.97,10.6753436]
[1749292566671,10.6753436,152.01,151.94,10.2]
[1749292566672,10.6753436,152.01,151.96,10.6753436]
[1749292567164,10.6753436,152.01,151.95,6.58099094]
[1749292567366,10.6753436,152.0,151.96,10.6753436]
[1749292567572,10.6753436,152.01,151.96,10.6753436]
[1749292567755,10.6753436,152.03,151.98,10.6753436]
[1749292568367,10.6753436,152.02,151.98,10.6753436]
[1749292568575,10.6753436,152.02,151.98,17.25501855]
[1749292569263,10.6753436,152.03,151.98,17.25501855]
[1749292572272,17.25306322,152.03,151.98,17.25501855]
[1749292573465,22.17468101,152.03,151.98,17.25501855]
[1749292575080,10.6753436,152.02,151.95,23.03389271]
[1749292575271,10.6753436,152.02,151.97,10.6753436]
[1749292575588,10.6753436,152.02,151.98,10.6753436]
[1749292576459,10.6753436,152.02,151.98,17.25502862]
[1749292577375,6.83043097,152.02,151.98,13.41011599]
[1749292577767,11.49933741,152.03,151.98,13.41011599]
[1749292577975,13.40815059,152.03,151.98,13.41011599]
[1749292578180,18.32976838,152.03,151.98,13.41011599]
[1749292578563,11.75204876,152.03,151.99,6.83043097]
[1749292578879,6.83043097,152.03,151.99,6.83043097]
[1749292579592,6.83043097,152.03,151.99,13.40952503]
[1749292579884,43.62423982,152.06,152.02,6.83043097]
[1749292580080,43.62423982,152.06,152.05,6.83043097]
[1749292581182,43.62423982,152.06,152.05,10.66182808]
[1749292582478,43.62423982,152.06,152.05,17.23861203]
[1749292583887,43.62423982,152.06,152.05,10.66182808]
[1749292585576,43.62423982,152.06,152.04,10.66182808]
[1749292591592,43.62423982,152.06,152.03,10.66182808]
[1749292591783,43.62423982,152.06,152.02,10.66182808]
[1749292591988,43.62423982,152.06,152.03,10.66182808]
[1749292592491,43.62423982,152.06,152.05,17.23861203]
[1749292593780,43.62423982,152.06,152.04,17.23889239]
[1749292593983,43.62423982,152.06,152.02,46.45808183]
[1749292594184,43.62423982,152.06,152.04,10.66182808]
[1749292599798,17.23745838,152.08,152.04,10.66182808]
[1749292604392,17.23745838,152.08,152.03,10.66182808]
[1749292604594,10.66182808,152.07,152.02,50.54182808]
[1749292604777,10.66182808,152.07,152.02,10.66182808]
[1749292605398,10.66182808,152.07,152.03,10.66182808]
[1749292605994,17.23793115,152.07,152.03,10.66182808]
[1749292608009,17.23793115,152.07,152.02,10.66182808]
[1749292608604,10.66182808,152.06,152.02,10.66182808]
[1749292609188,10.66182808,152.06,152.01,10.66182808]
[1749292609899,10.66182808,152.03,151.98,65.88]
[1749292610208,10.66182808,152.04,151.99,10.66182808]
[1749292610600,17.23936894,152.04,151.99,10.66182808]
[1749292611807,10.66182808,152.03,151.99,10.66182808]
[1749292612811,17.23936894,152.04,151.99,10.66182808]
[1749292613490,10.66182808,152.03,151.99,10.66182808]
[1749292613915,17.23958981,152.03,151.99,10.66182808]
[1749292615600,10.66182808,152.02,151.98,10.66182808]
[1749292616215,17.23991508,152.02,151.98,10.66182808]
[1749292616512,6.578087,152.02,151.99,10.66182808]
[1749292617807,17.23962623,152.03,151.99,10.66182808]
[1749292619228,13.40709743,152.03,151.99,6.82929928]
[1749292623453,1.535,152.05,151.99,6.82929928]
[1749292623454,25.22686538,152.04,151.99,6.82929928]
[1749292623663,6.82929928,152.03,151.99,6.82929928]
[1749292625024,13.40724591,152.03,151.99,6.82929928]
[1749292628049,6.57794663,152.03,151.99,6.82929928]
[1749292628347,32.05625302,152.04,151.99,13.40851721]
[1749292630647,6.82929928,152.04,151.99,13.40851721]
[1749292632653,13.40654663,152.04,151.99,13.40851721]
[1749292636037,6.82929928,152.03,151.99,6.82929928]
[1749292638751,6.82929928,152.03,151.99,13.4085548]
[1749292638952,13.40654663,152.04,151.99,13.4085548]
[1749292639947,13.40654663,152.04,152.0,6.82929928]
[1749292645253,13.40654663,152.04,151.99,13.40851534]
[1749292645750,13.40654663,152.04,151.99,6.82929928]
[1749292645932,6.82929928,152.03,151.99,6.82929928]
[1749292648049,13.40715829,152.03,151.99,6.82929928]
[1749292654756,18.34003889,152.03,151.99,6.82929928]
[1749292654960,13.40715829,152.03,151.99,6.82929928]
[1749292655158,18.34003889,152.03,151.99,6.82929928]
[1749292655465,13.40715829,152.03,151.99,6.82929928]
[1749292655650,18.34003889,152.03,151.99,6.82929928]
[1749292655841,13.40715829,152.03,151.99,6.82929928]
[1749292656038,18.34003889,152.03,151.99,6.82929928]
[1749292656238,13.40715829,152.03,151.99,6.82929928]
[1749292656438,18.34003889,152.03,151.99,6.82929928]
[1749292656657,13.40715829,152.03,151.99,6.82929928]
[1749292656950,18.34003889,152.03,151.99,6.82929928]
[1749292657147,13.40715829,152.03,151.99,6.82929928]
[1749292657450,18.34003889,152.03,151.99,6.82929928]
[1749292657645,13.40715829,152.03,151.99,6.82929928]
[1749292657969,18.34003889,152.03,151.99,6.82929928]
[1749292658159,13.40715829,152.03,151.99,6.82929928]
[1749292658458,18.34003889,152.03,151.99,6.82929928]
[1749292658661,13.40715829,152.03,151.99,6.82929928]
[1749292658844,18.34003889,152.03,151.99,6.82929928]
[1749292659045,13.40715829,152.03,151.99,6.82929928]
[1749292659365,18.34003889,152.03,151.99,6.82929928]
[1749292659557,13.40715829,152.03,151.99,6.82929928]
[1749292659869,18.34003889,152.03,151.97,6.5802461]
[1749292660077,13.40715829,152.03,151.99,6.82929928]
[1749292660262,18.34003889,152.03,151.99,6.82929928]
[1749292660564,18.34003889,152.03,151.96,76.08]
[1749292660565,6.82929928,152.02,151.98,6.82929928]
[1749292660767,11.76425685,152.01,151.96,10.2]
[1749292661063,6.82929928,152.01,151.96,17.02929928]
[1749292661469,4.93496757,152.0,151.96,17.02929928]
[1749292661674,6.82929928,152.01,151.96,17.02929928]
[1749292661978,13.40911241,151.98,151.94,6.82929928]
[1749292662359,18.34245474,151.98,151.93,6.82929928]
[1749292662551,13.40911241,151.98,151.93,6.82929928]
[1749292662951,6.82929928,151.97,151.93,6.82929928]
[1749292664168,13.40976339,151.97,151.93,6.82929928]
[1749292665459,6.82929928,151.95,151.92,10.2]
[1749292665952,6.82929928,151.95,151.9,6.82929928]
[1749292666265,6.82929928,151.94,151.9,6.82929928]
[1749292666782,6.82929928,151.94,151.89,39.41283675]
[1749292666953,6.82929928,151.94,151.89,13.41283675]
[1749292667352,13.41092756,151.94,151.89,13.41283675]
[1749292667875,6.82929928,151.94,151.89,13.41283675]
[1749292668049,13.41090756,151.94,151.89,13.41283675]
[1749292668572,13.41090756,151.94,151.89,6.58353747]
[1749292668791,6.82929928,151.93,151.89,6.58353747]
[1749292668968,6.82929928,151.93,151.89,13.41283675]
[1749292670269,13.41144438,151.93,151.88,49.6132849]
[1749292671856,6.82929928,151.92,151.88,49.6132849]
[1749292672061,6.82929928,151.92,151.88,43.02929928]
[1749292672257,6.58154534,151.94,151.88,43.02929928]
[1749292672258,6.82929928,151.91,151.88,10.2]
[1749292672584,6.82929928,151.91,151.87,6.82929928]
[1749292674048,13.41233164,151.91,151.87,6.82929928]
[1749292674287,13.41233164,151.91,151.86,6.82929928]
[1749292674975,6.82929928,151.91,151.87,6.82929928]
[1749292675175,6.58211215,151.93,151.87,6.82929928]
[1749292675391,6.82929928,151.92,151.87,6.82929928]
[1749292675571,6.58211215,151.93,151.87,6.82929928]
[1749292675772,6.82929928,151.92,151.87,6.82929928]
[1749292675973,6.82929928,151.92,151.87,13.41361695]
[1749292676653,13.41175405,151.92,151.87,13.41361695]
[1749292678388,6.82929928,151.92,151.87,13.41361695]
[1749292679872,13.41179012,151.92,151.87,13.41361695]
[1749292680674,6.82929928,151.91,151.87,13.41361695]
[1749292682195,6.82929928,151.92,151.88,6.82929928]
[1749292683888,6.82929928,151.92,151.88,13.4134071]
[1749292685980,13.41178285,151.92,151.87,13.4137821]
[1749292686181,6.82929928,151.91,151.87,13.4137821]
[1749292687788,6.82929928,151.92,151.87,13.4137821]
[1749292688700,6.82929928,151.9,151.86,13.41417471]
[1749292698394,6.58250546,151.92,151.87,6.82929928]
[1749292698581,6.82929928,151.91,151.87,6.82929928]
[1749292699102,6.82929928,151.93,151.89,6.82929928]
[1749292700300,6.82929928,151.93,151.89,13.41274567]
[1749292701306,6.82929928,151.94,151.9,6.82929928]
[1749292703105,13.41085865,151.94,151.9,6.82929928]
[1749292703304,13.41085865,151.94,151.89,6.82929928]
[1749292704601,6.82929928,151.93,151.87,6.58449958]
[1749292704805,6.82929928,151.92,151.86,26.0]
[1749292704992,6.82929928,151.9,151.86,6.82929928]
[1749292708213,13.41268289,151.9,151.86,6.82929928]
[1749292708592,13.41268289,151.9,151.85,13.41458899]
[1749292709110,6.82929928,151.89,151.85,6.82929928]
[1749292709286,6.82929928,151.89,151.84,49.61515322]
[1749292710309,6.82929928,151.89,151.85,6.82929928]
[1749292710609,6.82929928,151.9,151.85,6.82929928]
[1749292710805,6.82929928,151.9,151.86,6.82929928]
[1749292711915,6.82929928,151.89,151.84,42.78585394]
[1749292712209,6.82929928,151.89,151.85,6.82929928]
[1749292712400,6.82929928,151.88,151.83,6.82929928]
[1749292712605,6.82929928,151.87,151.83,6.82929928]
[1749292713594,13.41398212,151.87,151.83,6.82929928]
[1749292714101,13.41398212,151.87,151.82,13.41584815]
[1749292715707,17.02929928,151.9,151.85,6.82929928]
[1749292715892,17.02929928,151.9,151.86,6.82929928]
[1749292716093,6.82929928,151.91,151.87,6.82929928]
[1749292717223,10.68809479,151.91,151.87,17.27263598]
[1749292717517,10.68809479,151.91,151.86,17.27298374]
[1749292718099,17.27096377,151.91,151.86,17.27298374]
[1749292718721,17.27096377,151.91,151.87,10.68809479]
[1749292720125,25.15637168,151.93,151.87,17.27260205]
[1749292720308,30.91924365,151.93,151.88,10.68809479]
[1749292720619,58.39498599,151.94,151.9,10.68809479]
[1749292720799,53.46976317,151.94,151.9,10.68809479]
[1749292721320,46.88809479,151.94,151.9,10.68809479]
[1749292721521,20.88809479,151.94,151.9,10.68809479]
[1749292722729,20.88809479,151.94,151.9,17.2712904]
[1749292723100,10.2,151.94,151.91,10.68809479]
[1749292723300,60.40512804,151.96,151.91,10.68809479]
[1749292723605,36.68809479,151.96,151.92,10.68809479]
[1749292724010,26.0,151.96,151.92,10.68809479]
[1749292724828,26.0,151.96,151.92,17.27040146]
[1749292731436,26.0,151.96,151.92,10.68809479]
[1749292732737,43.26880075,151.96,151.92,10.68809479]
[1749292735234,10.68809479,151.95,151.91,10.68809479]
[1749292736513,17.26921862,151.95,151.9,17.27123243]
[1749292736917,17.26921862,151.95,151.9,6.58313764]
[1749292737117,17.26921862,151.95,151.9,17.27123243]
[1749292737645,10.68809479,151.94,151.9,17.27123243]
[1749292738140,10.68809479,151.94,151.9,6.58313764]
[1749292738329,10.68809479,151.94,151.89,10.68809479]
[1749292739249,6.83819365,151.94,151.89,6.83819365]
[1749292739543,6.83819365,151.93,151.89,6.83819365]
[1749292741344,6.83819365,151.91,151.87,6.83819365]
[1749292741649,6.83819365,151.91,151.85,16.2155]
[1749292741834,6.83819365,151.9,151.86,6.83819365]
[1749292742141,6.83819365,151.89,151.85,17.03819365]
[1749292742327,13.42225801,151.89,151.85,6.83819365]
[1749292743249,13.42225801,151.89,151.85,10.69129402]
[1749292743250,17.27535838,151.89,151.85,10.69129402]
[1749292746337,10.69129402,151.9,151.85,10.69129402]
[1749292747952,17.27500591,151.89,151.85,10.69129402]
[1749292752757,17.27451292,151.91,151.86,10.69129402]
[1749292753525,17.27451292,151.91,151.87,10.69129402]
[1749292753731,10.69129402,151.9,151.86,17.27627423]
[1749292755053,46.89129402,151.93,151.89,10.69129402]
[1749292755430,53.47335984,151.93,151.89,10.69129402]
[1749292755757,53.47335984,151.93,151.88,10.69129402]
[1749292756855,53.47335984,151.93,151.88,17.27536146]
[1749292757156,53.47335984,151.93,151.88,6.58406744]
[1749292757345,53.47335984,151.93,151.88,17.27536146]
[1749292758459,10.69129402,151.92,151.88,10.69129402]
[1749292759545,10.69129402,151.91,151.87,10.69129402]
[1749292760230,6.58327847,151.9,151.87,10.69129402]
[1749292761646,6.58327847,151.9,151.86,10.69129402]
[1749292765363,6.58327847,151.9,151.86,6.84095049]
[1749292767458,13.42397847,151.91,151.86,6.84095049]
[1749292774467,6.84095049,151.91,151.86,6.84095049]
[1749292776656,13.42418178,151.91,151.86,6.84095049]
[1749292780768,6.84095049,151.9,151.84,6.58587987]
[1749292780965,13.42418178,151.91,151.86,6.84095049]
[1749292781982,13.42418178,151.91,151.87,6.84095049]
[1749292784885,6.84095049,151.91,151.87,13.42546546]
[1749292785581,13.42380603,151.91,151.87,6.84095049]
[1749292786087,13.42352797,151.92,151.87,13.42536625]
[1749292786587,11.76282638,151.92,151.87,13.42536625]
[1749292787084,6.84095049,151.92,151.87,13.42536625]
[1749292787270,13.42341649,151.92,151.87,13.42536625]
[1749292788583,18.34529238,151.92,151.87,13.42536625]
[1749292789205,4.92187589,151.92,151.88,6.84095049]
[1749292789366,4.92187589,151.93,151.9,6.84095049]
[1749292789563,18.34421461,151.95,151.9,6.84095049]
[1749292791265,13.42233872,151.95,151.9,6.84095049]
[1749292797602,6.84095049,151.94,151.9,6.84095049]
[1749292800415,13.42233872,151.95,151.91,6.84095049]
[1749292801580,4.9254246,151.97,151.94,6.84095049]
[1749292801801,40.044397,151.98,151.94,6.84095049]
[1749292802707,40.044397,151.98,151.94,13.42241673]
[1749292803101,40.044397,151.98,151.95,6.84095049]
[1749292804002,40.044397,151.98,151.96,6.84095049]
[1749292805196,40.044397,151.98,151.96,13.42147696]
[1749292805588,40.044397,151.98,151.93,6.58197854]
[1749292805802,40.044397,151.98,151.93,13.42292903]
[1749292805803,46.88534749,151.98,151.93,13.42292903]
[1749292806694,53.46517521,151.98,151.93,13.42292903]
[1749292807598,40.044397,151.98,151.95,6.84095049]
[1749292808118,40.044397,151.98,151.94,6.84095049]
[1749292809513,40.044397,151.98,151.94,13.42207989]
[1749292809888,40.044397,151.98,151.95,6.84095049]
[1749292812516,6.84095049,151.96,151.92,6.84095049]
[1749292812725,6.84095049,151.96,151.91,6.84095049]
[1749292813106,6.84095049,151.96,151.92,6.84095049]
[1749292813303,10.68079152,151.97,151.92,10.68079152]
[1749292813503,10.68079152,151.97,151.92,17.26308197]
[1749292815503,17.26104903,151.97,151.92,17.26308197]
[1749292817023,10.68079152,151.97,151.92,17.26308197]
[1749292817909,10.68079152,151.97,151.93,10.68079152]
[1749292818109,17.26110804,151.97,151.92,17.26308197]
[1749292824426,48.28328259,151.98,151.92,17.26308197]
[1749292824594,41.703297,151.98,151.93,10.68079152]
[1749292824799,40.044397,151.98,151.95,10.68079152]
[1749292825228,17.25998592,152.0,151.95,10.68079152]
[1749292825521,10.68079152,151.99,151.95,10.68079152]
[1749292825721,10.68079152,151.99,151.94,10.68079152]
[1749292825923,17.26027853,151.99,151.94,17.26223123]
[1749292828303,10.68079152,151.98,151.94,17.26223123]
[1749292829914,17.26040058,151.99,151.94,17.26223123]
[1749292831501,10.68079152,151.99,151.94,17.26223123]
[1749292832435,17.26029753,151.99,151.94,17.26223123]
[1749292832612,10.68079152,151.99,151.94,17.26223123]
[1749292834702,6.57903705,152.0,151.94,17.26223123]
[1749292834703,4.91961033,152.01,151.95,10.68079152]
[1749292835027,11.8207,152.02,151.96,10.68079152]
[1749292835028,10.68079152,152.0,151.96,10.68079152]
[1749292835208,6.83189034,152.0,151.97,6.5802461]
[1749292835725,25.23068081,152.02,151.97,13.41213644]
[1749292838326,6.83189034,152.01,151.97,13.41213644]
[1749292838711,25.23068081,152.02,151.97,13.41213644]
[1749292840025,15.05068081,152.02,151.97,13.41213644]
[1749292840826,6.83189034,152.01,151.97,6.83189034]
[1749292841018,6.83189034,152.01,151.96,6.83189034]
[1749292842222,6.57894736,152.0,151.96,6.83189034]
[1749292842632,13.4105521,152.01,151.97,6.83189034]
[1749292846232,6.57866176,152.01,151.97,6.83189034]
[1749292846436,13.4105521,152.01,151.97,6.83189034]
[1749292848127,6.83189034,152.01,151.97,6.83189034]
[1749292849317,13.41048401,152.01,151.97,6.83189034]
[1749292854955,6.83189034,152.01,151.97,13.41212671]
[1749292855456,13.41059624,152.01,151.95,6.5811122]
[1749292855742,13.41059624,152.01,151.97,6.83189034]
[1749292858035,13.41059624,152.01,151.96,6.83189034]
[1749292858235,6.83189034,152.0,151.96,6.83189034]
[1749292858746,13.41122881,152.0,151.96,6.83189034]
[1749292859826,6.83189034,151.98,151.94,46.69189034]
[1749292860139,6.83189034,151.97,151.93,43.01189034]
[1749292860752,13.41236349,151.97,151.93,43.01189034]
[1749292860957,13.41236349,151.97,151.93,6.83189034]
[1749292862358,6.83189034,151.97,151.93,6.83189034]
[1749292862536,6.83189034,151.97,151.93,13.41376697]
[1749292865033,13.4121981,151.97,151.93,6.83189034]
[1749292865730,6.83189034,151.96,151.92,32.83189034]
[1749292865930,6.83189034,151.96,151.91,6.58267668]
[1749292865931,6.83189034,151.95,151.9,32.58299514]
[1749292866168,6.83189034,151.94,151.9,32.83189034]
[1749292866331,6.83189034,151.94,151.9,39.41507541]
[1749292869159,16.44962312,151.98,151.9,39.41516647]
[1749292869336,6.83189034,151.94,151.9,39.41516647]
[1749292869537,6.83189034,151.95,151.9,39.41516647]
[1749292870057,6.83189034,151.95,151.91,6.83189034]
[1749292870540,6.83189034,151.95,151.91,13.4146827]
[1749292871154,6.83189034,151.95,151.91,6.83189034]
[1749292871356,13.41303184,151.95,151.91,6.83189034]
[1749292871661,6.83189034,151.95,151.91,6.83189034]
[1749292872157,6.83189034,151.95,151.91,13.41470328]
[1749292877353,13.41301625,151.95,151.91,6.83189034]
[1749292878266,13.41301625,151.95,151.9,39.41500489]
[1749292878565,6.83189034,151.94,151.89,23.59542553]
[1749292879866,8.22283945,151.96,151.9,6.83189034]
[1749292880046,8.47389034,151.96,151.91,6.83189034]
[1749292881156,8.47389034,151.96,151.92,6.58241179]
[1749292882867,15.05457495,151.96,151.92,6.58241179]
[1749292883054,15.05457495,151.96,151.91,13.41455736]
[1749292883366,6.83189034,151.95,151.91,13.41455736]
[1749292886670,15.05457495,151.96,151.91,13.41455736]
[1749292888279,15.05457495,151.96,151.91,6.83189034]
[1749292888564,6.83189034,151.95,151.91,6.83189034]
[1749292889259,13.41303608,151.95,151.91,6.83189034]
[1749292891270,6.83189034,151.95,151.91,13.41470631]
[1749292891675,18.64964886,151.99,151.92,6.83189034]
[1749292891970,6.83189034,151.95,151.91,6.83189034]
[1749292892164,6.83189034,151.95,151.9,13.41504071]
[1749292892873,6.83189034,151.95,151.89,13.4154253]
[1749292894074,13.4131781,151.95,151.89,13.4154253]
[1749292896345,6.83189034,151.94,151.89,13.4154253]
[1749292896549,6.83189034,151.94,151.88,49.59585323]
[1749292897667,13.41362857,151.94,151.88,49.59585323]
[1749292897873,6.83189034,151.93,151.88,49.59585323]
[1749292898471,13.41362857,151.94,151.88,49.59585323]
[1749292899676,6.83189034,151.93,151.88,49.59585323]
[1749292901674,6.83189034,151.92,151.88,36.18]
[1749292902373,6.83189034,151.92,151.88,42.76407378]
[1749292902981,6.83189034,151.93,151.88,49.59596412]
[1749292903760,13.41406969,151.93,151.88,32.83189034]
[1749292904659,13.41406969,151.93,151.88,39.41592106]
[1749292906281,6.83189034,151.93,151.88,39.41592106]
[1749292908178,13.41394714,151.93,151.88,39.41592106]
[1749292914393,6.83189034,151.92,151.88,39.41592106]
[1749292917171,6.83189034,151.93,151.88,39.41592106]
[1749292918087,13.41404177,151.93,151.88,39.41592106]
[1749292919168,6.83189034,151.93,151.88,39.41592106]
[1749292919688,13.4139122,151.93,151.88,39.41592106]
[1749292921167,6.83189034,151.93,151.88,39.41592106]
[1749292921603,13.41402224,151.93,151.88,39.41592106]